bitfinex/quotes_ETHUSD_20251108
["timestamp","ask_amount","ask_price","bid_price","bid_amount"]
[1762643044368,2.14594107,3415.0,3414.9,0.001]
[1762643044671,1.731312,3415.0,3414.9,0.001]
[1762643045178,1.259712,3415.0,3414.9,0.9636]
[1762643045759,1.259712,3415.0,3414.9,0.4911]
[1762643047285,1.261712,3415.0,3414.9,0.4911]
[1762643047852,4.22196968,3415.0,3414.9,0.001]
[1762643048092,1.756312,3415.0,3414.9,0.001]
[1762643048288,1.0738649,3415.0,3414.9,0.001]
[1762643048461,0.034,3415.0,3414.9,0.001]
[1762643049590,2.96225768,3415.0,3414.9,0.001]
[1762643049892,3.42485768,3415.0,3414.9,0.001]
[1762643050292,0.77075475,3415.0,3414.9,0.001]
[1762643050755,3.69901243,3415.0,3414.9,0.001]
[1762643051107,5.38055434,3415.0,3414.9,0.001]
[1762643052308,5.79518341,3415.0,3414.9,0.001]
[1762643052494,6.17542625,3415.0,3414.9,0.001]
[1762643052699,2.3699395,3415.0,3414.9,0.001]
[1762643052982,1.56786675,3415.0,3414.9,0.001]
[1762643053369,1.28284401,3415.0,3414.9,0.001]
[1762643053899,1.74084401,3415.0,3414.9,0.001]
[1762643054397,4.66910169,3415.0,3414.9,0.001]
[1762643054698,1.74084401,3415.0,3414.9,0.001]
[1762643055373,1.28284401,3415.0,3414.9,0.001]
[1762643057694,1.27814401,3415.0,3414.9,0.9636]
[1762643057995,1.28274401,3415.0,3414.9,0.001]
[1762643058396,0.98461542,3415.0,3414.9,0.001]
[1762643060566,4.3709731,3415.0,3414.9,0.001]
[1762643060997,1.44271542,3415.0,3414.9,0.001]
[1762643062400,0.98461542,3415.0,3414.9,0.001]
[1762643063095,0.002,3415.4,3414.9,0.9636]
[1762643063492,4.31935456,3415.6,3414.9,0.9636]
[1762643063670,3.05964256,3415.6,3414.9,0.9636]
[1762643064272,0.002,3415.0,3414.9,0.9636]
[1762643068433,1.09302217,3415.5,3414.9,0.9636]
[1762643069136,1.48181791,3415.5,3414.9,0.9636]
[1762643070363,0.27444866,3415.4,3414.9,0.9636]
[1762643070520,0.27444866,3415.3,3414.9,0.9636]
[1762643070727,0.27444866,3415.2,3414.9,0.9636]
[1762643071054,0.27444866,3415.1,3414.9,0.9636]
[1762643071256,0.27444866,3415.0,3414.9,0.9636]
[1762643071555,0.27444866,3415.0,3414.9,0.4735]
[1762643071704,0.27444866,3415.0,3414.9,0.9644]
[1762643073676,0.27444866,3415.0,3414.9,0.4919]
[1762643073677,0.08369993,3415.0,3414.9,0.4919]
[1762643073960,0.08369993,3415.0,3414.9,0.001]
[1762643073961,0.16129993,3415.0,3414.9,0.001]
[1762643077119,8.2384308,3415.0,3414.9,0.001]
[1762643077459,7.84963506,3415.0,3414.9,0.001]
[1762643078010,9.10934706,3415.0,3414.9,0.001]
[1762643078646,8.81378519,3415.0,3414.9,0.001]
[1762643078814,9.20258093,3415.0,3414.9,0.001]
[1762643079156,8.81378519,3415.0,3414.9,0.001]
[1762643080817,8.81578519,3415.0,3414.9,0.001]
[1762643083658,8.65626754,3415.0,3414.9,0.001]
[1762643088659,8.42928211,3415.0,3414.9,0.001]
[1762643090386,8.42928211,3415.0,3414.2,0.001]
[1762643090387,2.9285817,3414.7,3413.9,2.4170416]
[1762643090691,1.53399157,3414.6,3413.9,2.4170416]
[1762643090893,3.38210503,3414.9,3413.0,0.001]
[1762643090894,0.27427957,3414.5,3414.4,2.92877225]
[1762643091092,0.27427957,3414.5,3413.7,2.93031558]
[1762643091294,0.002,3415.0,3414.3,2.92885803]
[1762643091295,0.27427957,3414.4,3414.3,2.92885803]
[1762643091654,0.27427957,3414.4,3414.3,3.39825803]
[1762643092593,0.27427957,3414.4,3414.3,3.85575803]
[1762643093703,0.11637839,3414.4,3414.3,3.85575803]
[1762643098621,0.11837839,3414.4,3414.3,3.88504661]
[1762643098825,0.002,3414.8,3414.7,2.92848769]
[1762643099188,0.002,3414.8,3414.7,3.85538769]
[1762643100310,0.002,3414.8,3414.7,3.88467283]
[1762643100611,0.0008,3414.8,3414.7,9.41165335]
[1762643100828,0.0008,3414.8,3414.7,5.14105974]
[1762643102050,0.0008,3414.8,3414.7,9.26525335]
[1762643103111,0.0008,3414.8,3414.7,5.14105974]
[1762643103742,0.91691339,3415.7,3415.1,2.92809897]
[1762643103946,0.91691339,3415.7,3414.7,0.88016805]
[1762643104116,4.12419361,3415.5,3414.8,3.58864346]
[1762643104313,4.12419361,3415.5,3414.8,3.12544346]
[1762643104620,0.4485,3415.4,3414.9,2.92834203]
[1762643105142,0.4485,3415.4,3414.9,3.39154203]
[1762643105343,0.4485,3415.4,3414.9,0.4632]
[1762643105731,0.4485,3415.4,3414.9,3.39150802]
[1762643105935,0.4485,3415.4,3415.0,2.92824678]
[1762643106642,1.36541339,3415.7,3415.1,0.4632]
[1762643107006,1.36541339,3415.7,3415.1,3.39134175]
[1762643107234,0.91691339,3415.7,3415.1,3.39134175]
[1762643108152,1.36541339,3415.7,3415.1,0.4632]
[1762643108316,0.4485,3415.2,3414.9,2.92833408]
[1762643108517,0.4485,3415.2,3414.8,0.6603]
[1762643108720,0.4485,3415.2,3414.5,0.1971]
[1762643108721,0.0045,3414.9,3414.5,0.1971]
[1762643109035,0.91146884,3415.2,3414.6,3.39176571]
[1762643109206,0.91146884,3415.2,3414.8,0.4528]
[1762643109608,1.35556884,3415.2,3414.8,0.4528]
[1762643110038,0.0044,3414.9,3414.6,2.92857881]
[1762643110354,4.12859361,3414.7,3414.1,0.001]
[1762643110522,4.12859361,3414.7,3414.3,2.92880417]
[1762643110760,0.27391663,3414.6,3414.3,3.39200417]
[1762643110945,0.27391663,3414.5,3414.3,3.39200417]
[1762643111144,0.27391663,3414.4,3414.3,2.92880417]
[1762643111578,0.27391663,3414.4,3414.3,3.38160417]
[1762643111755,4.40421024,3414.4,3414.1,0.001]
[1762643111944,0.27391663,3414.3,3414.1,0.001]
[1762643112260,0.27391663,3414.2,3414.1,0.001]
[1762643112745,0.27391663,3414.2,3414.1,0.4538]
[1762643113970,0.07949627,3414.2,3414.1,0.4538]
[1762643116176,0.07949627,3414.2,3414.1,0.001]
[1762643116177,0.53589627,3414.2,3414.1,0.001]
[1762643116567,3.46944009,3414.2,3414.1,0.001]
[1762643116766,9.70172135,3414.2,3414.1,0.001]
[1762643117078,4.18899901,3413.8,3413.7,0.001]
[1762643117254,9.63586827,3413.8,3413.7,0.001]
[1762643117455,9.9942277,3413.8,3413.7,0.001]
[1762643117661,9.24877253,3413.8,3413.7,0.001]
[1762643118899,8.99320408,3413.8,3413.7,0.001]
[1762643124096,8.67154015,3413.8,3413.7,0.001]
[1762643124398,9.24877253,3413.8,3413.7,0.001]
[1762643125898,9.52154266,3413.8,3413.7,0.001]
[1762643126129,9.51984266,3413.8,3413.7,0.001]
[1762643126306,0.27277013,3413.8,3413.7,0.4538]
[1762643126504,1.53248213,3413.8,3413.7,0.4538]
[1762643127003,1.53248213,3413.8,3413.7,0.001]
[1762643127203,2.00258213,3413.8,3413.7,0.001]
[1762643128326,4.86706374,3413.8,3413.7,0.001]
[1762643128527,7.79635075,3413.8,3413.7,0.001]
[1762643129094,7.53669387,3413.8,3413.7,0.001]
[1762643130198,9.25120587,3413.8,3413.7,0.001]
[1762643130394,10.05701827,3413.8,3413.7,0.001]
[1762643132304,10.05901827,3413.8,3413.7,0.001]
[1762643134228,9.9042085,3413.8,3413.7,0.001]
[1762643138225,5.90831447,3413.7,3413.4,0.001]
[1762643138427,5.10977063,3413.6,3413.4,0.001]
[1762643138738,5.92869628,3413.6,3413.4,0.001]
[1762643139243,5.72981015,3413.6,3413.4,0.001]
[1762643139416,4.85091441,3413.6,3413.4,0.001]
[1762643139816,5.34101441,3413.6,3413.4,0.001]
[1762643141016,5.61480758,3413.6,3413.4,0.001]
[1762643141881,5.12470758,3413.6,3413.4,0.001]
[1762643142020,4.69457767,3413.6,3413.4,0.001]
[1762643144258,4.55960812,3413.6,3413.4,0.001]
[1762643144418,4.4629638,3413.6,3413.5,0.4896]
[1762643145456,8.58715741,3413.6,3413.5,0.4896]
[1762643145749,8.58715741,3413.6,3413.5,0.001]
[1762643146526,5.65769878,3413.6,3413.5,0.4896]
[1762643146732,8.58715741,3413.6,3413.5,0.9492]
[1762643147127,5.65769878,3413.6,3413.5,0.9492]
[1762643148122,0.27379317,3413.6,3413.5,0.9492]
[1762643148558,0.27379317,3413.6,3413.5,3.87874445]
[1762643148928,0.27379317,3413.6,3413.5,0.9492]
[1762643149130,4.4629638,3413.6,3413.5,0.001]
[1762643149329,4.18494794,3413.6,3413.5,0.001]
[1762643149558,4.82907785,3413.6,3413.5,0.001]
[1762643149920,4.61717785,3413.6,3413.5,0.001]
[1762643150161,7.05387256,3413.4,3413.0,0.4196]
[1762643150361,4.12419361,3413.1,3412.8,0.001]
[1762643150970,4.12419361,3413.1,3413.0,0.4886]
[1762643152040,4.12419361,3413.1,3413.0,0.9482]
[1762643154424,3.79218213,3413.1,3413.0,0.9482]
[1762643156258,4.12419361,3413.3,3413.0,0.9482]
[1762643156562,4.12419361,3413.3,3413.1,0.6488]
[1762643156860,5.38390561,3413.3,3413.2,0.4886]
[1762643157261,5.38390561,3413.3,3413.2,0.9482]
[1762643157958,8.31362172,3413.3,3413.2,0.4886]
[1762643158159,8.56722172,3413.3,3412.9,0.4606]
[1762643158332,4.44302811,3413.3,3412.9,0.4606]
[1762643159364,4.14055573,3413.3,3412.9,0.4606]
[1762643159666,3.88695573,3413.3,3412.9,0.4606]
[1762643160335,0.95723962,3413.3,3412.9,0.4606]
[1762643160764,0.95723962,3413.3,3413.2,0.4886]
[1762643161339,1.2321381,3413.3,3413.2,0.9482]
[1762643161531,0.27489848,3413.3,3413.2,0.9482]
[1762643163468,0.27489848,3413.3,3413.2,3.87800194]
[1762643164338,0.01562432,3413.3,3413.2,3.87800194]
[1762643167177,0.01562432,3413.3,3413.2,4.28350594]
[1762643167538,0.01762432,3413.3,3413.2,4.28350594]
[1762643167737,0.002,3413.3,3413.2,4.28350594]
[1762643168761,0.002,3413.3,3413.2,0.9482]
[1762643169568,4.0516442,3413.9,3413.3,0.4861]
[1762643169954,1.12239701,3413.9,3413.3,0.4861]
[1762643170357,4.05160126,3413.9,3413.3,0.4861]
[1762643170769,4.05159979,3413.9,3413.3,0.4861]
[1762643171205,4.33614451,3413.7,3413.3,0.4861]
[1762643171576,1.259712,3413.6,3413.3,0.4861]
[1762643172096,1.259712,3413.6,3413.1,0.1892]
[1762643172097,1.259712,3413.3,3413.0,0.4871]
[1762643172678,1.259712,3413.3,3413.2,0.4647]
[1762643173695,1.262212,3413.3,3413.0,0.001]
[1762643173994,5.59585651,3413.1,3413.0,0.001]
[1762643174359,5.59585651,3413.1,3413.0,0.4657]
[1762643174561,5.32562818,3413.1,3413.0,0.4657]
[1762643176600,5.60015908,3413.1,3413.0,0.4657]
[1762643179225,5.60515908,3413.1,3413.0,0.001]
[1762643179628,5.77082512,3413.1,3413.0,0.001]
[1762643179805,5.34069521,3413.1,3413.0,0.001]
[1762643180328,5.33569521,3413.1,3413.0,0.001]
[1762643180512,1.5342429,3413.1,3413.0,0.4657]
[1762643180720,1.5342429,3413.1,3413.0,0.9518]
[1762643182130,1.96437281,3413.1,3413.0,0.9518]
[1762643183332,1.5342429,3413.1,3413.0,0.4657]
[1762643183897,1.96437281,3413.1,3413.0,0.4657]
[1762643184536,1.37613895,3413.1,3413.0,0.4657]
[1762643185010,1.37813895,3413.1,3413.0,0.4657]
[1762643185827,1.37813895,3413.1,3413.0,0.9518]
[1762643186532,1.37813895,3413.1,3413.0,0.4657]
[1762643187132,1.80826886,3413.1,3413.0,0.001]
[1762643189626,1.52988211,3413.1,3413.0,0.001]
[1762643190024,1.52988211,3413.1,3413.0,0.4657]
[1762643190230,0.2765309,3413.1,3413.0,3.88177363]
[1762643190432,0.2765309,3413.1,3413.0,0.9518]
[1762643191039,0.2765309,3413.1,3413.0,3.88177363]
[1762643193454,0.2765309,3413.1,3413.0,4.28727763]
[1762643193658,0.2765309,3413.1,3413.0,4.56380853]
[1762643194675,1.259712,3414.1,3413.7,0.6458]
[1762643194877,4.18849675,3414.4,3413.9,0.4635]
[1762643195167,4.18849675,3414.4,3414.0,0.4635]
[1762643195340,1.259712,3414.4,3414.0,0.4635]
[1762643195542,0.002,3414.5,3414.3,0.4635]
[1762643196069,1.261712,3414.5,3414.3,0.4635]
[1762643196470,1.261712,3414.5,3414.1,0.6743]
[1762643196678,0.002,3414.5,3414.1,0.6743]
[1762643197857,1.261712,3414.5,3414.1,0.6743]
[1762643198566,0.002,3414.5,3414.1,0.6743]
[1762643198947,1.261712,3414.5,3414.1,0.6743]
[1762643199140,5.98825533,3414.5,3414.1,0.6743]
[1762643199341,5.98825533,3414.5,3413.9,0.492]
[1762643199640,0.497604,3413.9,3413.0,0.001]
[1762643199951,0.86517375,3413.8,3413.0,0.001]
[1762643200151,3.40598778,3413.1,3413.0,0.001]
[1762643200365,0.95937907,3413.1,3413.0,0.001]
[1762643200571,1.45627907,3413.1,3413.0,0.001]
[1762643200769,4.38616685,3413.1,3413.0,0.001]
[1762643201294,1.45627907,3413.1,3413.0,0.001]
[1762643201484,4.38616685,3413.1,3413.0,0.001]
[1762643201792,5.16259978,3413.1,3413.0,0.001]
[1762643202154,2.232712,3413.1,3413.0,0.001]
[1762643202390,5.16259978,3413.1,3413.0,0.001]
[1762643202884,5.94169328,3413.1,3413.0,0.001]
[1762643204360,5.51139446,3413.1,3413.0,0.001]
[1762643204573,5.94169328,3413.1,3413.0,0.001]
[1762643204779,5.65501806,3413.1,3413.0,0.001]
[1762643206678,5.92912622,3413.1,3413.0,0.001]
[1762643208501,6.41236472,3413.1,3413.0,0.001]
[1762643209881,6.21640354,3413.1,3413.0,0.001]
[1762643210072,6.22090354,3413.1,3413.0,0.001]
[1762643212501,5.44181004,3413.1,3413.0,0.001]
[1762643212699,5.87210886,3413.1,3413.0,0.001]
[1762643212905,6.22090354,3413.1,3413.0,0.001]
[1762643214807,6.08542182,3413.1,3413.0,0.001]
[1762643215904,6.08510298,3413.1,3413.0,0.001]
[1762643216401,6.54487222,3413.1,3413.0,0.001]
[1762643216607,6.19607754,3413.1,3413.0,0.001]
[1762643218003,5.84119566,3413.1,3413.0,0.001]
[1762643218402,5.41089684,3413.1,3413.0,0.001]
[1762643218604,4.92315834,3413.1,3413.0,0.001]
[1762643219193,4.92975834,3413.1,3413.0,0.001]
[1762643219398,4.4719891,3413.1,3413.0,0.001]
[1762643219977,4.1808646,3413.1,3413.0,0.001]
[1762643220177,2.93005948,3412.9,3412.8,0.001]
[1762643220373,8.01642429,3412.9,3412.8,0.001]
[1762643220576,8.23042429,3412.9,3412.8,0.001]
[1762643221000,8.34792119,3412.9,3412.8,0.001]
[1762643221212,8.77822001,3412.9,3412.8,0.001]
[1762643222007,10.03793201,3412.9,3412.8,0.001]
[1762643224982,9.81785097,3412.9,3412.8,0.001]
[1762643227322,4.59763306,3412.6,3412.1,0.005]
[1762643227613,12.45717478,3412.4,3412.1,0.005]
[1762643227817,14.2072961,3412.4,3412.1,0.005]
[1762643228917,10.07485911,3412.4,3412.1,0.005]
[1762643229089,9.72606443,3412.4,3412.1,0.005]
[1762643230117,9.52828291,3412.4,3412.1,0.005]
[1762643232718,13.6607199,3412.4,3412.1,0.005]
[1762643232922,9.98812117,3412.4,3412.1,0.005]
[1762643233234,9.52828291,3412.4,3412.1,0.005]
[1762643235030,9.33327027,3412.4,3412.1,0.005]
[1762643236333,9.79311368,3412.4,3412.1,0.005]
[1762643236510,13.92555067,3412.4,3412.1,0.005]
[1762643237333,2.93083235,3412.0,3411.9,0.001]
[1762643237521,9.51030798,3412.0,3411.9,0.001]
[1762643238484,6.57947563,3412.0,3411.9,0.4791]
[1762643238638,8.59677066,3412.0,3411.9,0.9707]
[1762643239349,9.08220916,3412.0,3411.9,0.001]
[1762643239735,9.08000916,3412.0,3411.9,0.001]
[1762643239938,8.59677066,3412.0,3411.9,0.4791]
[1762643240139,8.2489862,3412.0,3411.9,0.4791]
[1762643240341,8.7322247,3412.0,3411.9,0.4791]
[1762643241703,9.16252352,3412.0,3411.9,0.4791]
[1762643242363,9.59132352,3412.0,3411.9,0.001]
[1762643243991,9.16252352,3412.0,3411.9,0.001]
[1762643245285,8.25059598,3412.0,3411.9,0.001]
[1762643245795,12.81183297,3412.0,3411.9,0.001]
[1762643245997,2.93109007,3411.7,3411.6,0.001]
[1762643246171,7.39971638,3411.7,3411.6,0.001]
[1762643246496,9.23164104,3411.7,3411.6,0.001]
[1762643246694,9.72324104,3411.7,3411.6,0.001]
[1762643247057,2.93151969,3411.2,3411.1,0.005]
[1762643247295,1.259712,3410.8,3410.6,0.4916]
[1762643247511,1.259712,3410.8,3410.1,0.005]
[1762643247512,6.12577893,3410.8,3410.1,0.005]
[1762643247661,6.60901743,3410.8,3410.7,0.6299]
[1762643248122,6.60901743,3410.8,3410.7,1.1215]
[1762643250288,6.29011893,3410.8,3410.7,1.1215]
[1762643251761,5.34703981,3410.8,3410.7,1.1215]
[1762643252366,1.21460282,3410.8,3410.7,1.1215]
[1762643254096,3.20565281,3410.8,3410.7,1.1215]
[1762643254795,0.27378932,3410.8,3410.7,1.1215]
[1762643255212,0.1157695,3410.8,3410.7,1.1215]
[1762643258708,0.599008,3410.8,3410.7,1.1215]
[1762643260295,0.38015164,3410.8,3410.7,1.1215]
[1762643262041,0.47464792,3410.8,3410.7,1.1215]
[1762643265418,0.32341928,3410.8,3410.7,1.1215]
[1762643266353,0.45420346,3411.1,3410.7,1.1215]
[1762643266646,1.71391546,3411.6,3411.0,0.4644]
[1762643266821,1.259712,3411.2,3411.0,0.4644]
[1762643267017,1.259712,3411.3,3411.0,0.4644]
[1762643267221,1.259712,3411.3,3411.1,0.4644]
[1762643267421,1.259712,3411.3,3411.2,0.4644]
[1762643267615,2.93139816,3411.4,3411.2,0.4644]
[1762643267817,5.39214899,3411.3,3411.2,0.4521]
[1762643268021,8.32358275,3411.3,3411.1,0.1993]
[1762643268222,8.32358275,3411.3,3411.2,0.4644]
[1762643269031,8.32358275,3411.3,3411.0,0.4521]
[1762643269824,5.39214899,3411.3,3411.0,0.4521]
[1762643270030,5.39214899,3411.3,3411.2,0.4644]
[1762643270461,5.16124439,3411.3,3411.2,0.4644]
[1762643272153,8.09267815,3411.3,3411.2,0.11187886]
[1762643272355,5.43594817,3411.3,3411.2,0.11187886]
[1762643272556,5.43594817,3411.3,3411.2,0.56397886]
[1762643272754,5.43794817,3411.3,3411.2,0.56397886]
[1762643274560,5.66885277,3411.3,3411.2,0.56397886]
[1762643275466,5.36010277,3411.3,3411.2,0.56397886]
[1762643280494,5.09259395,3411.3,3411.2,0.56397886]
[1762643281003,1.259712,3411.3,3411.2,0.56397886]
[1762643281485,6.41936316,3411.7,3411.4,2.93133261]
[1762643281685,7.67907516,3411.7,3411.6,0.482]
[1762643282063,7.67907516,3411.7,3411.6,0.9714]
[1762643283506,1.261712,3411.7,3411.6,3.90257598]
[1762643284016,0.002,3411.7,3411.6,3.90257598]
[1762643285484,0.96376427,3412.8,3412.1,2.93067443]
[1762643285687,0.96376427,3412.8,3412.7,0.482]
[1762643286077,4.34595017,3412.9,3412.7,0.9714]
[1762643286277,4.34595017,3412.9,3412.3,0.1994]
[1762643286278,0.007,3412.9,3412.8,0.482]
[1762643286524,0.007,3412.9,3412.8,0.9714]
[1762643287488,0.28087079,3412.9,3412.8,0.9714]
[1762643288836,1.259712,3412.8,3412.3,0.1994]
[1762643289007,0.27387079,3412.7,3412.3,0.6888]
[1762643289201,1.259712,3412.5,3411.9,0.4894]
[1762643289404,0.27387079,3412.4,3411.8,2.93094326]
[1762643289697,0.27387079,3412.3,3412.0,0.4894]
[1762643289909,0.27362622,3412.2,3412.1,0.001]
[1762643290106,0.27362622,3412.2,3412.1,0.2004]
[1762643290417,0.27362622,3412.2,3412.1,1.1718]
[1762643290605,0.03312876,3412.2,3412.1,1.1718]
[1762643293133,0.03312876,3412.2,3412.1,0.6824]
[1762643293431,0.03312876,3412.2,3412.1,0.483]
[1762643293632,1.359549,3412.2,3412.1,0.001]
[1762643294084,0.916249,3412.2,3412.1,0.483]
[1762643295729,0.77612494,3412.2,3412.1,0.483]
[1762643296730,1.21982494,3412.2,3412.1,0.001]
[1762643296890,6.23729219,3412.2,3412.1,0.001]
[1762643297221,2.05887521,3412.2,3412.1,0.483]
[1762643297427,1.259712,3412.2,3412.1,0.483]
[1762643298130,1.259712,3412.2,3412.1,1.1718]
[1762643298425,1.259712,3412.2,3412.1,0.483]
[1762643300424,1.703012,3412.2,3412.1,0.001]
[1762643300627,1.259712,3412.2,3412.1,0.001]
[1762643300923,1.00165195,3412.2,3412.1,0.001]
[1762643301493,1.00165195,3412.2,3412.1,0.483]
[1762643302519,1.44565195,3412.2,3412.1,0.001]
[1762643302719,2.17369323,3412.2,3412.1,0.001]
[1762643302930,2.65169323,3412.2,3412.1,0.001]
[1762643303295,2.17369323,3412.2,3412.1,0.001]
[1762643304629,1.72969323,3412.2,3412.1,0.6824]
[1762643304928,1.27548977,3412.2,3412.1,1.1718]
[1762643305231,0.007,3412.9,3412.2,2.93060871]
[1762643305527,1.53373521,3412.8,3412.4,0.482]
[1762643305695,0.09947285,3412.7,3412.6,0.482]
[1762643305895,0.09947285,3412.7,3412.6,0.4894]
[1762643306134,0.09947285,3412.7,3412.6,0.9714]
[1762643306335,0.09947285,3412.7,3412.6,0.482]
[1762643307434,0.09947285,3412.7,3412.6,0.9714]
[1762643310111,0.09947285,3412.7,3412.6,3.90171706]
[1762643310316,0.09947285,3412.7,3412.6,0.9714]
[1762643310732,1.18973975,3413.1,3412.6,0.482]
[1762643310935,1.66873975,3413.1,3412.6,3.90171513]
[1762643311127,1.66873975,3413.1,3412.6,0.9714]
[1762643311526,1.66873975,3413.1,3412.6,3.901704]
[1762643311732,1.66873975,3413.1,3412.7,0.4757]
[1762643311937,1.18973975,3413.1,3412.7,0.4757]
[1762643312247,1.18973975,3413.1,3412.7,3.40592664]
[1762643312646,1.37535918,3413.3,3412.1,0.1829]
[1762643312647,0.4869,3412.8,3412.1,0.1829]
[1762643312814,0.0111,3412.6,3412.1,0.1829]
[1762643313020,0.46530346,3412.6,3412.1,0.1829]
[1762643313319,0.90457199,3412.5,3412.1,0.001]
[1762643313753,0.4869,3412.2,3412.1,0.001]
[1762643313965,0.93726853,3412.2,3412.1,0.001]
[1762643315665,0.4869,3412.2,3412.1,0.001]
[1762643315833,1.71391546,3412.5,3412.1,0.001]
[1762643316166,0.45036853,3412.4,3412.1,0.001]
[1762643316366,0.90457199,3412.4,3412.1,0.001]
[1762643316562,0.90457199,3412.4,3412.1,0.4767]
[1762643316963,0.90457199,3412.4,3412.1,0.001]
[1762643317266,1.25897199,3412.4,3412.1,0.001]
[1762643317662,0.0035,3412.2,3412.1,0.001]
[1762643317852,0.90457199,3412.4,3412.1,0.001]
[1762643320765,0.45420346,3412.4,3412.1,0.001]
[1762643320960,5.59866217,3412.5,3412.1,0.001]
[1762643321777,6.0490307,3412.5,3412.1,0.001]
[1762643321939,0.45036853,3412.4,3412.1,0.001]
[1762643322868,0.27470073,3412.3,3412.1,0.001]
[1762643323066,0.27470073,3412.2,3412.1,0.6586]
[1762643323567,0.27470073,3412.2,3412.1,1.1578]
[1762643324371,0.27470073,3412.2,3412.1,1.18710746]
[1762643324540,0.27470073,3412.2,3412.1,4.08854646]
[1762643325959,0.03817668,3412.2,3412.1,4.08854646]
[1762643330987,0.94949852,3412.7,3412.2,2.93059578]
[1762643331187,0.94949852,3412.7,3412.2,0.4951]
[1762643331361,1.42329852,3412.7,3412.2,0.4951]
[1762643331989,1.42329852,3412.7,3412.2,3.42574511]
[1762643333584,0.94949852,3412.7,3412.2,0.4951]
[1762643333991,0.94949852,3412.7,3412.2,3.42575693]
[1762643334486,0.94949852,3412.7,3412.3,0.4951]
[1762643335293,1.42329852,3412.7,3412.1,3.60870785]
[1762643335959,0.4738,3412.7,3412.2,2.93062299]
[1762643336599,0.4238,3412.7,3412.2,2.93062299]
[1762643336892,0.4238,3412.7,3412.2,3.42572299]
[1762643338091,1.683512,3412.7,3412.2,3.42572299]
[1762643338488,1.259712,3412.7,3412.2,3.42572299]
[1762643339796,1.259712,3412.7,3412.2,2.93062299]
[1762643339975,1.259712,3412.7,3412.2,3.42572299]
[1762643341104,0.9695986,3412.7,3412.2,3.42572299]
[1762643341310,0.9695986,3412.7,3412.2,2.93062299]
[1762643341510,0.9695986,3412.7,3412.3,0.4746]
[1762643341874,0.9715986,3412.7,3412.3,0.4746]
[1762643342977,0.27479156,3412.6,3412.3,0.4746]
[1762643343177,0.27479156,3412.5,3412.3,0.4746]
[1762643343378,0.27479156,3412.4,3412.3,0.4746]
[1762643344723,0.27479156,3412.4,3412.3,0.935]
[1762643345419,0.27479156,3412.4,3412.3,3.86557468]
[1762643346221,0.11770067,3412.4,3412.3,3.86557468]
[1762643349627,0.11770067,3412.4,3412.3,4.27107868]
[1762643351119,4.36077375,3413.4,3412.3,4.27107868]
[1762643351336,1.259712,3413.3,3412.8,3.39054533]
[1762643351534,1.259712,3413.3,3412.9,2.93005829]
[1762643351718,1.498712,3413.3,3412.9,2.93005829]
[1762643351922,1.498712,3413.3,3412.8,0.4746]
[1762643352109,0.4344,3412.9,3412.1,0.001]
[1762643352308,4.13072744,3412.3,3412.1,0.001]
[1762643352508,0.2343,3412.2,3412.1,0.001]
[1762643352920,4.13072744,3412.3,3412.1,0.001]
[1762643353632,4.13072744,3412.3,3412.1,2.93173014]
[1762643354008,4.13072744,3412.3,3412.1,3.40633014]
[1762643354745,4.13072744,3412.3,3412.2,0.4604]
[1762643355268,2.51302701,3412.8,3412.2,0.935]
[1762643355269,1.259712,3412.8,3412.2,0.935]
[1762643355551,1.259712,3412.8,3412.7,0.4604]
[1762643355732,1.259712,3413.1,3412.7,0.935]
[1762643355907,1.259712,3413.1,3412.7,0.4604]
[1762643356311,0.239,3413.0,3412.5,0.4746]
[1762643356554,0.239,3413.0,3412.5,3.4049935]
[1762643356755,0.239,3413.0,3412.6,2.93030592]
[1762643356910,1.0516172,3413.1,3412.6,3.40490592]
[1762643357117,1.0516172,3413.1,3412.6,2.93030592]
[1762643357417,1.0516172,3413.1,3412.7,0.4746]
[1762643358339,1.0516172,3413.1,3413.0,0.4604]
[1762643358910,4.13072744,3413.2,3413.0,3.86494969]
[1762643359136,0.241,3413.5,3413.1,0.6481]
[1762643359137,1.259712,3413.4,3413.1,0.6481]
[1762643359331,1.259712,3413.4,3413.1,1.1227]
[1762643359546,1.259712,3413.4,3413.3,0.4604]
[1762643359945,4.13272744,3413.5,3413.3,0.4604]
[1762643361319,3.94037027,3413.5,3413.3,0.4604]
[1762643362643,5.20008227,3413.5,3413.4,0.4604]
[1762643362850,3.94037027,3413.5,3413.4,0.4604]
[1762643363056,0.002,3413.6,3413.4,0.4604]
[1762643363351,0.27445651,3413.5,3413.4,0.4604]
[1762643364133,0.27445651,3413.5,3413.4,0.935]
[1762643365725,0.27445651,3413.5,3413.4,0.4604]
[1762643366153,0.27445651,3413.5,3413.4,0.935]
[1762643366374,0.0421609,3413.5,3413.1,3.1175596]
[1762643366666,0.0421609,3413.5,3413.1,3.5921596]
[1762643366872,0.0421609,3413.5,3413.2,3.40437591]
[1762643368364,4.17288834,3413.5,3413.1,2.92983038]
[1762643368567,0.0421609,3413.5,3413.1,2.92983038]
[1762643368972,0.5273609,3413.5,3413.0,2.9299334]
[1762643369374,0.5273609,3413.5,3413.1,2.92986783]
[1762643369576,0.5273609,3413.5,3413.0,2.9299364]
[1762643370237,0.5273609,3413.5,3413.1,2.92987668]
[1762643370670,0.5273609,3413.5,3413.0,2.92995207]
[1762643370975,0.5273609,3413.5,3412.9,0.6623]
[1762643370976,0.5273609,3413.5,3413.1,2.92988511]
[1762643371476,0.24939728,3413.5,3413.1,2.92988511]
[1762643371676,4.38012472,3413.5,3413.1,2.92988511]
[1762643371874,4.13072744,3413.5,3412.9,0.1877]
[1762643372067,4.13072744,3413.5,3413.0,2.92991652]
[1762643372583,4.13072744,3413.5,3413.1,2.9298844]
[1762643373448,4.13072744,3413.5,3413.0,3.4165407]
[1762643373786,4.13072744,3413.5,3413.0,0.4866]
[1762643374003,0.002,3413.6,3412.8,2.93008206]